fUSD/lending_fUSD_20250331
["ID","MTS","AMOUNT","RATE_DAILY","PERIOD"]
[356941220,1743459040916,-2000.0,0.000329,120]
[356941221,1743459040926,-385.09,0.00032932,120]
[356941222,1743459040936,-1172.88179104,0.0003299,2]
[356941223,1743459040946,-25009.36247111,0.00033,2]
[356941224,1743459040956,-1000.0,0.00033027,2]
[356941225,1743459040965,-160.81,0.00033258,2]
[356941226,1743459040974,-249.2,0.00033496,2]
[356941227,1743459040983,-2000.0,0.000335,2]
[356941228,1743459040993,-586.44089552,0.0003351,2]
[356941229,1743459041003,-9725.79256205,0.0003352,2]
[356941230,1743459041013,-1513.98,0.00033573,120]
[356941231,1743459041022,-1233.92,0.00033575,2]
[356941232,1743459041032,-732.08,0.00033588,2]
[356941233,1743459041041,-586.44089552,0.00033777,2]
[356941234,1743459041051,-2424.96,0.00033834,2]
[356941235,1743459041061,-200.0,0.0003385,2]
[356941236,1743459041070,-215.04,0.00033873,120]
[356941237,1743459041080,-1137.28,0.00034209,2]
[356941238,1743459041090,-3211.59285987,0.00034282,2]
[356941239,1743459041100,-160.81,0.00034526,2]
[356941240,1743459041110,-1486.80659,0.00035137,45]
[356941241,1743459041119,-2424.96,0.00035526,2]
[356941242,1743459041129,-586.44089552,0.00035683,2]
[356941243,1743459041141,-1716.75900579,0.00035693,2]
[356941244,1743459041151,-160.81,0.00035793,2]
[356941245,1743459041161,-1009.0,0.000362,2]
[356941246,1743459041173,-1137.28,0.00036473,2]
[356941247,1743459041182,-1000.0,0.00036696,2]
[356941248,1743459041192,-200.0,0.00036781,120]
[356941249,1743459041202,-172.47427029,0.000372,103]
[356941250,1743459041211,-586.44089552,0.00037207,3]
[356941251,1743459041220,-2424.96,0.00037217,2]
[356941252,1743459041231,-1513.98,0.00037304,120]
[356941253,1743459041240,-385.09,0.0003741,120]
[356941254,1743459041250,-1716.75900577,0.00037804,2]
[356941255,1743459041259,-1137.28,0.00038737,2]
[356941256,1743459041268,-1793.0634,0.00038888,30]
[356941257,1743459041278,-2424.96,0.00038909,2]
[356941258,1743459041288,-886.96,0.00038951,2]
[356941259,1743459041298,-154.42,0.00038951,2]
[356941260,1743459041308,-163.13,0.00038951,2]
[356941261,1743459041317,-173.37,0.00038951,2]
[356941262,1743459041327,-324.31050557,0.00039,120]
[356941263,1743459041341,-1009.04007848,0.00039,2]
[356941264,1743459041351,-586.44089552,0.00039003,3]
[356941265,1743459041360,-1431.64,0.00039662,2]
[356941266,1743459041369,-444.17,0.00039662,2]
[356941267,1743459041380,-444.17,0.00039662,2]
[356941268,1743459041389,-444.17,0.00039662,2]
[356941269,1743459041399,-444.17,0.00039662,2]
[356941270,1743459041409,-444.17,0.00039662,2]
[356941271,1743459041419,-444.17,0.00039662,2]
[356941272,1743459041429,-444.17,0.00039662,2]
[356941273,1743459041439,-609.6538273,0.00039699,12]
[356941274,1743459041448,-150.0,0.00039799,2]
[356941275,1743459041458,-157.95,0.00039799,2]
[356941276,1743459041467,-443.6,0.00039799,2]
[356941277,1743459041477,-150.0,0.00039799,2]
[356941278,1743459041486,-347.09,0.00039799,2]
[356941279,1743459041495,-150.0,0.00039799,2]
[356941280,1743459041506,-150.0,0.00039799,2]
[356941281,1743459041515,-150.0,0.00039799,2]
[356941282,1743459041524,-347.09,0.00039799,2]
[356941283,1743459041534,-443.6,0.00039799,2]
[356941284,1743459041544,-150.0,0.00039799,2]
[356941285,1743459041554,-150.0,0.00039799,2]
[356941286,1743459041563,-443.6,0.00039799,2]
[356941287,1743459041572,-150.0,0.00039799,2]
[356941288,1743459041581,-150.0,0.00039799,2]
[356941289,1743459041591,-150.0,0.00039799,2]
[356941290,1743459041600,-347.09,0.00039799,2]
[356941291,1743459041609,-150.0,0.00039799,2]
[356941292,1743459041618,-150.0,0.00039799,2]
[356941293,1743459041628,-347.09,0.00039799,2]
[356941294,1743459041637,-150.0,0.00039799,2]
[356941295,1743459041646,-150.0,0.00039799,2]
[356941296,1743459041656,-443.6,0.00039799,2]
[356941297,1743459041665,-443.6,0.00039799,2]
[356941298,1743459041675,-150.0,0.00039799,2]
[356941299,1743459041685,-347.09,0.00039799,2]
[356941300,1743459041694,-150.0,0.00039799,2]
[356941301,1743459041704,-150.0,0.00039799,2]
[356941302,1743459041713,-150.0,0.00039799,2]
[356941303,1743459041722,-443.6,0.00039799,2]
[356941304,1743459041731,-150.0,0.00039799,2]
[356941305,1743459041740,-347.09,0.00039799,2]
[356941306,1743459041751,-150.0,0.00039799,2]
[356941307,1743459041760,-150.0,0.00039799,2]
[356941308,1743459041770,-443.6,0.00039799,2]
[356941309,1743459041780,-347.09,0.00039799,2]
[356941310,1743459041790,-150.0,0.00039799,2]
[356941311,1743459041799,-150.0,0.00039799,2]
[356941312,1743459041809,-586.44089552,0.00039905,3]
[356941313,1743459041818,-1716.75900577,0.00039915,15]
[356941314,1743459041827,-167.47623129,0.0004,30]
[356941315,1743459041837,-248.40466955,0.0004,120]
[356941316,1743459041846,-302.53,0.00040073,2]
[356941317,1743459041856,-165.98,0.000401,2]
[356941318,1743459041865,-1486.80659,0.00040137,45]
[356941319,1743459041874,-1000.0,0.00040366,2]
[356941320,1743459041883,-2424.96,0.00040601,2]
[356941321,1743459041893,-586.44089552,0.00040611,3]
[356941322,1743459041902,-156.63,0.00040616,2]
[356941323,1743459041911,-443.6,0.0004062,2]
[356941324,1743459041921,-443.6,0.0004062,2]
[356941325,1743459041930,-433.71,0.0004062,2]
[356941326,1743459041940,-150.0,0.0004062,2]
[356941327,1743459041949,-444.17,0.0004062,2]
[356941328,1743459041958,-150.0,0.0004062,2]
[356941329,1743459041968,-150.0,0.0004062,2]
[356941330,1743459041977,-150.0,0.0004062,2]
[356941331,1743459041986,-150.0,0.0004062,2]
[356941332,1743459041995,-150.0,0.0004062,2]
[356941333,1743459042005,-150.0,0.0004062,2]
[356941334,1743459042014,-190.77,0.0004062,2]
[356941335,1743459042023,-150.0,0.0004062,2]
[356941336,1743459042032,-4081.0,0.00041,117]
[356941337,1743459042041,-175.0,0.00041,14]
[356941338,1743459042051,-1137.28,0.00041001,2]
[356941339,1743459042060,-1513.98,0.00041034,120]
[356941340,1743459042069,-1759.32268656,0.00041086,3]
[356941341,1743459042078,-500.0,0.00041096,30]
[356941342,1743459042087,-500.0,0.00041096,30]
[356941343,1743459042096,-500.0,0.00041096,30]
[356941344,1743459042105,-500.0,0.00041096,30]
[356941345,1743459042115,-500.0,0.00041096,30]
[356941346,1743459042124,-500.0,0.00041096,30]
[356941347,1743459042133,-630.0,0.00041096,30]
[356941348,1743459042142,-2000.0,0.00041096,13]
[356941349,1743459042151,-2000.0,0.00041096,13]
[356941350,1743459042160,-2000.0,0.00041096,13]
[356941351,1743459042171,-2000.0,0.00041096,13]
[356941352,1743459042180,-2000.0,0.00041096,13]
[356941353,1743459042190,-2000.0,0.00041096,13]
[356941354,1743459042199,-2000.0,0.00041096,13]
[356941355,1743459042208,-2000.0,0.00041096,13]
[356941356,1743459042217,-2000.0,0.00041096,13]
[356941357,1743459042227,-2000.0,0.00041096,13]
[356941358,1743459042237,-2000.0,0.00041096,13]
[356941359,1743459042250,-2000.0,0.00041096,13]
[356941360,1743459042260,-2000.0,0.00041096,13]
[356941361,1743459042270,-2000.0,0.00041096,13]
[356941362,1743459042279,-2000.0,0.00041096,13]
[356941363,1743459042288,-331.0,0.00041096,13]
[356941364,1743459042297,-500.0,0.00041726,2]
[356941365,1743459042307,-385.09,0.00041888,120]
[356941366,1743459042317,-310.55,0.00042,120]
[356941367,1743459042326,-586.44089552,0.00042017,3]
[356941368,1743459042341,-1716.75900577,0.00042027,15]
[356941369,1743459042351,-403.00596042,0.00042192,120]
[356941370,1743459042361,-500.0,0.00042431,10]
[356941371,1743459042370,-502.33359425,0.00042431,10]
[356941372,1743459042381,-162.9,0.00042583,2]
[356941373,1743459042391,-2877.62,0.00042785,2]
[356941374,1743459042400,-586.44089552,0.0004299,3]
[356941375,1743459042411,-22085.45047034,0.00043,120]
[356941376,1743459042421,-1137.28,0.00043265,2]
[356941377,1743459042431,-500.0,0.00043836,120]
[356941378,1743459042441,-500.0,0.00043836,120]
[356941379,1743459042451,-500.0,0.00043836,120]
[356941380,1743459042461,-500.0,0.00043836,120]
[356941381,1743459042471,-500.0,0.00043836,120]
[356941382,1743459042577,-500.0,0.00043836,120]
[356941383,1743459042587,-500.0,0.00043836,120]
[356941384,1743459042596,-500.0,0.00043836,120]
[356941385,1743459042606,-500.0,0.00043836,120]
[356941387,1743459042615,-500.0,0.00043836,120]
[356941389,1743459042626,-500.0,0.00043836,120]
[356941391,1743459042635,-500.0,0.00043836,120]
[356941393,1743459042645,-500.0,0.00043836,120]
[356941395,1743459042655,-500.0,0.00043836,120]
[356941397,1743459042665,-500.0,0.00043836,120]
[356941399,1743459042674,-261.11591654,0.00043836,120]
[356941401,1743459042684,-500.0,0.00043836,120]
[356941403,1743459042693,-500.0,0.00043836,120]
[356941405,1743459042703,-500.0,0.00043836,120]
[356941407,1743459042713,-500.0,0.00043836,120]
[356941409,1743459042723,-500.0,0.00043836,120]
[356941411,1743459042733,-500.0,0.00043836,120]
[356941413,1743459042742,-500.0,0.00043836,120]
[356941415,1743459042751,-500.0,0.00043836,120]
[356941417,1743459042761,-500.0,0.00043836,120]
[356941419,1743459042770,-500.0,0.00043836,120]
[356941421,1743459042779,-500.0,0.00043836,120]
[356941423,1743459042788,-500.0,0.00043836,120]
[356941425,1743459042796,-500.0,0.00043836,120]
[356941427,1743459042806,-500.0,0.00043836,120]
[356941429,1743459042815,-500.0,0.00043836,120]
[356941432,1743459042824,-500.0,0.00043836,120]
[356941434,1743459042834,-500.0,0.00043836,120]
[356941435,1743459042843,-500.0,0.00043836,120]
[356941436,1743459042853,-500.0,0.00043836,120]
[356941437,1743459042863,-500.0,0.00043836,120]
[356941438,1743459042873,-500.0,0.00043836,120]
[356941440,1743459042883,-500.0,0.00043836,120]
[356941441,1743459042892,-500.0,0.00043836,120]
[356941443,1743459042902,-500.0,0.00043836,120]
[356941445,1743459042912,-500.0,0.00043836,120]
[356941447,1743459042922,-500.0,0.00043836,120]
[356941449,1743459042932,-500.0,0.00043836,120]
[356941451,1743459042941,-500.0,0.00043836,120]
[356941453,1743459042951,-500.0,0.00043836,120]
[356941454,1743459042961,-500.0,0.00043836,120]
[356941455,1743459042971,-500.0,0.00043836,120]
[356941456,1743459042981,-500.0,0.00043836,120]
[356941457,1743459042990,-649.99999999,0.00043836,120]
[356941458,1743459043000,-500.0,0.00043836,120]
[356941459,1743459043009,-500.0,0.00043836,120]
[356941460,1743459043019,-500.0,0.00043836,120]
[356941461,1743459043028,-500.0,0.00043836,120]
[356941462,1743459043037,-500.0,0.00043836,120]
[356941463,1743459043047,-1000.0,0.00044035,2]
[356941464,1743459043057,-1716.75900577,0.00044138,15]
[356941465,1743459043066,-5226.77530691,0.0004439,120]
[356941466,1743459043076,-1193.0,0.00044544,7]
[356941467,1743459043086,-1513.98,0.00044764,120]
[356941468,1743459043096,-150.0,0.00044973,10]
[356941469,1743459043106,-151.0,0.00045,120]
[356941470,1743459043116,-25700.0,0.00045,120]
[356941471,1743459043126,-656.28886021,0.00045,120]
[356941472,1743459043136,-719.18,0.00045,120]
[356941473,1743459043146,-5000.0,0.00045,30]
[356941474,1743459043155,-1486.80659,0.00045137,45]
[356941475,1743459043165,-986.70846674,0.00045312,120]
[356941476,1743459043175,-181.265,0.00045313,2]
[356941477,1743459043184,-150.0,0.00045438,120]
[356941478,1743459043194,-250.0,0.00045521,10]
[356941479,1743459043203,-1137.28,0.00045529,2]
[356941480,1743459043212,-350.0,0.00046068,10]
[356941481,1743459043222,-2625.9348743,0.00046113,3]
[356941482,1743459043231,-783.01,0.00046123,30]
[356941483,1743459043240,-783.01,0.00046123,30]
[356941484,1743459043250,-444.17,0.00046123,30]
[356941485,1743459043259,-1716.75900577,0.00046249,15]
[356941486,1743459043268,-452.40553029,0.000463,120]
[356941487,1743459043278,-385.09,0.00046366,120]
[356941489,1743459043287,-450.0,0.00046616,10]
[356941491,1743459043296,-195.94,0.00046733,2]
[356941493,1743459043306,-150.0,0.00046808,120]
[356941495,1743459043315,-2625.9348743,0.00046817,3]
[356941496,1743459043324,-783.01,0.00046823,30]
[356941497,1743459043337,-783.01,0.00046823,30]
[356941498,1743459043346,-783.01,0.00046823,30]
[356941499,1743459043356,-176.398,0.00046827,2]
[356941500,1743459043365,-171.557,0.00046827,2]
[356941501,1743459043374,-643.0,0.00046827,2]
[356941502,1743459043385,-2040.0,0.00046827,2]
[356941504,1743459043394,-1283.0,0.00046827,2]
[356941506,1743459043404,-1449.959,0.00046827,2]
[356941508,1743459043415,-575.261,0.00046827,2]
[356941510,1743459043424,-789.0,0.00046827,2]
[356941512,1743459043434,-1275.0,0.00046827,2]
[356941514,1743459043443,-908.0,0.00046827,2]
[356941516,1743459043453,-543.0,0.00046827,2]
[356941517,1743459043463,-1432.0,0.00046827,2]
[356941518,1743459043472,-4091.0,0.00046827,2]
[356941520,1743459043482,-3948.0,0.00046827,2]
[356941522,1743459043491,-151.0,0.00046827,2]
[356941524,1743459043501,-1117.0,0.00046827,2]
[356941525,1743459043510,-2625.9348743,0.00046844,3]
[356941526,1743459043520,-550.0,0.00047164,10]
[356941527,1743459043529,-151.41,0.00047524,2]
[356941528,1743459043539,-6358.0,0.00047534,5]
[356941529,1743459043548,-223.0,0.000477,2]
[356941530,1743459043558,-5000.0,0.000477,120]
[356941531,1743459043568,-650.0,0.00047712,10]
[356941532,1743459043577,-2625.9348743,0.0004779,3]
[356941533,1743459043586,-1137.28,0.00047792,2]
[356941534,1743459043596,-160.69,0.000478,42]
[356941535,1743459043605,-160.69,0.000478,42]
[356941536,1743459043614,-160.69,0.000478,42]
[356941537,1743459043623,-160.69,0.000478,42]
[356941538,1743459043632,-160.69,0.000478,42]
[356941539,1743459043644,-160.69,0.000478,42]
[356941540,1743459043653,-160.69,0.000478,42]
[356941541,1743459043662,-160.69,0.000478,42]
[356941542,1743459043672,-160.69,0.000478,42]
[356941543,1743459043681,-160.69,0.000478,42]
[356941544,1743459043690,-160.69,0.000478,42]
[356941545,1743459043699,-160.69,0.000478,42]
[356941546,1743459043709,-1000.0,0.0004791,10]
[356941547,1743459043718,-320.30227584,0.00047973,120]
[356941548,1743459043727,-5006.6995868,0.00048,120]
[356941549,1743459043737,-1540.0,0.00048,120]
[356941550,1743459043748,-199.61274239,0.00048,30]
[356941551,1743459043758,-600.0,0.00048,90]
[356941552,1743459043768,-150.0,0.00048178,120]
[356941553,1743459043778,-750.0,0.0004826,10]
[356941554,1743459043790,-1716.75900577,0.0004836,15]
[356941555,1743459043800,-783.01,0.00048523,30]
[356941556,1743459043811,-444.17,0.00048523,30]
[356941557,1743459043821,-444.17,0.00048523,30]
[356941558,1743459043830,-444.17,0.00048523,30]
[356941559,1743459043840,-499.6743,0.00048631,10]
[356941560,1743459043850,-2625.9348743,0.00048778,4]
[356941561,1743459043860,-4817.99999901,0.00048788,120]
[356941562,1743459043869,-2625.9348743,0.0004879,4]
[356941563,1743459043878,-5898.15023027,0.000488,120]
[356941564,1743459043888,-15161.38596948,0.000488,7]
[356941565,1743459043898,-205.13506531,0.00048808,10]
[356941566,1743459043907,-500.0,0.00048873,10]
[356941567,1743459043916,-2625.9348743,0.0004889,4]
[356941568,1743459043926,-36763.0882402,0.0004889,4]
[356941569,1743459043936,-311.66665618,0.00048899,30]
[356941570,1743459043946,-1132.94343681,0.000489,5]
[356941571,1743459043956,-6285.77948773,0.000489,5]
[356941572,1743459043966,-206600.0,0.000489,120]
[356941573,1743459043976,-151.0,0.000489,14]
[356941574,1743459043986,-151.0,0.000489,14]
[356941575,1743459043996,-150.0,0.000489,2]
[356941576,1743459044006,-151.118013,0.000489,14]
[356941577,1743459044016,-151.0,0.000489,14]
[356941578,1743459044025,-151.0,0.000489,14]
[356941579,1743459044035,-151.0,0.000489,14]
[356941580,1743459044045,-151.0,0.000489,14]
[356941581,1743459044055,-151.0,0.000489,14]
[356941582,1743459044064,-151.0,0.000489,14]
[356941583,1743459044074,-226.563252,0.000489,14]
[356941584,1743459044176,-226.563252,0.000489,14]
[356941585,1743459044186,-151.0,0.000489,14]
[356941586,1743459044198,-151.0,0.000489,14]
[356941587,1743459044210,-151.0,0.000489,14]
[356941588,1743459044220,-151.0,0.000489,14]
[356941589,1743459044229,-151.0,0.000489,14]
[356941590,1743459044239,-152.164897,0.000489,14]
[356941591,1743459044249,-151.0,0.000489,14]
[356941592,1743459044260,-151.0,0.000489,14]
[356941593,1743459044269,-151.0,0.000489,14]
[356941594,1743459044280,-151.0,0.000489,14]
[356941595,1743459044289,-151.0,0.000489,14]
[356941596,1743459044298,-151.0,0.000489,14]
[356941597,1743459044308,-151.0,0.000489,14]
[356941598,1743459044317,-151.0,0.000489,14]
[356941599,1743459044326,-151.0,0.000489,14]
[356941600,1743459044340,-151.0,0.000489,14]
[356941601,1743459044349,-151.0,0.000489,14]
[356941602,1743459044358,-154.560245,0.000489,14]
[356941603,1743459044368,-151.0,0.000489,14]
[356941604,1743459044378,-151.0,0.000489,14]
[356941605,1743459044387,-1283.499064,0.000489,14]
[356941606,1743459044397,-151.0,0.000489,14]
[356941607,1743459044407,-486.458752,0.000489,14]
[356941608,1743459044416,-151.0,0.000489,14]
[356941609,1743459044426,-486.458752,0.000489,14]
[356941610,1743459044435,-151.0,0.000489,14]
[356941611,1743459044444,-151.0,0.000489,14]
[356941612,1743459044454,-151.0,0.000489,14]
[356941613,1743459044463,-151.0,0.000489,14]
[356941614,1743459044472,-159.04115,0.000489,14]
[356941615,1743459044482,-151.0,0.000489,14]
[356941616,1743459044491,-151.0,0.000489,14]
[356941617,1743459044500,-151.0,0.000489,14]
[356941618,1743459044510,-151.0,0.000489,14]
[356941619,1743459044519,-2000.0,0.000489,17]
[356941620,1743459044529,-151.0,0.000489,14]
[356941621,1743459044538,-151.0,0.000489,14]
[356941622,1743459044547,-151.0,0.000489,14]
[356941623,1743459044557,-151.0,0.000489,14]
[356941624,1743459044567,-219.320469,0.000489,14]
[356941625,1743459044576,-151.0,0.000489,14]
[356941626,1743459044585,-151.0,0.000489,14]
[356941627,1743459044595,-219.320469,0.000489,14]
[356941628,1743459044604,-151.0,0.000489,14]
[356941629,1743459044613,-151.0,0.000489,14]
[356941630,1743459044623,-151.0,0.000489,14]
[356941631,1743459044632,-151.0,0.000489,14]
[356941632,1743459044642,-152.662687,0.000489,14]
[356941633,1743459044651,-151.0,0.000489,14]
[356941634,1743459044661,-151.0,0.000489,14]
[356941635,1743459044671,-151.0,0.000489,14]
[356941636,1743459044680,-443.570144,0.000489,14]
[356941637,1743459044690,-693.129918,0.000489,14]
[356941638,1743459044699,-443.570144,0.000489,14]
[356941639,1743459044709,-151.0,0.000489,14]
[356941640,1743459044718,-693.129918,0.000489,14]
[356941641,1743459044728,-151.0,0.000489,14]
[356941642,1743459044737,-266.768445,0.000489,14]
[356941643,1743459044746,-151.0,0.000489,14]
[356941644,1743459044757,-152.502206,0.000489,14]
[356941645,1743459044767,-151.0,0.000489,14]
[356941646,1743459044777,-151.0,0.000489,14]
[356941647,1743459044787,-151.0,0.000489,14]
[356941648,1743459044796,-151.0,0.000489,14]
[356941649,1743459044805,-151.0,0.000489,14]
[356941650,1743459044815,-152.335468,0.000489,14]
[356941651,1743459044824,-151.0,0.000489,14]
[356941652,1743459044833,-151.0,0.000489,14]
[356941653,1743459044843,-151.0,0.000489,14]
[356941654,1743459044851,-151.0,0.000489,14]
[356941655,1743459044861,-151.0,0.000489,14]
[356941656,1743459044871,-151.0,0.000489,14]
[356941657,1743459044880,-399.14,0.00048934,30]
[356941658,1743459044889,-540.83,0.00048934,30]
[356941659,1743459044900,-150.0,0.00048934,30]
[356941660,1743459044909,-150.0,0.00048934,30]
[356941661,1743459044919,-500.0,0.00049049,120]
[356941662,1743459044929,-2625.9348743,0.00049305,4]
[356941663,1743459044939,-500.0,0.00049315,120]
[356941664,1743459044948,-500.0,0.00049315,120]
[356941665,1743459044958,-500.0,0.00049315,120]
[356941666,1743459044967,-500.0,0.00049315,120]
[356941667,1743459044977,-500.0,0.00049315,120]
[356941668,1743459044986,-500.0,0.00049315,120]
[356941669,1743459044995,-500.0,0.00049315,120]
[356941670,1743459045005,-500.0,0.00049315,120]
[356941671,1743459045015,-500.0,0.00049315,120]
[356941672,1743459045024,-500.0,0.00049315,120]
[356941673,1743459045034,-500.0,0.00049315,120]
[356941674,1743459045044,-500.0,0.00049315,120]
[356941675,1743459045054,-500.0,0.00049315,120]
[356941676,1743459045064,-500.0,0.00049315,120]
[356941677,1743459045074,-500.0,0.00049315,120]
[356941678,1743459045085,-500.0,0.00049315,120]
[356941679,1743459045094,-500.0,0.00049315,120]
[356941680,1743459045105,-600.0,0.00049315,120]
[356941681,1743459045115,-500.0,0.00049315,120]
[356941682,1743459045125,-500.0,0.00049315,120]
[356941683,1743459045135,-500.0,0.00049315,120]
[356941684,1743459045145,-500.0,0.00049315,120]
[356941685,1743459045156,-500.0,0.00049315,120]
[356941686,1743459045166,-500.0,0.00049315,120]
[356941687,1743459045176,-500.0,0.00049315,120]
[356941688,1743459045186,-500.0,0.00049315,120]
[356941689,1743459045196,-500.0,0.00049315,120]
[356941690,1743459045205,-500.0,0.00049315,120]
[356941691,1743459045214,-500.0,0.00049315,120]
[356941692,1743459045224,-210.24154272,0.00049315,120]
[356941693,1743459045233,-500.0,0.00049315,120]
[356941694,1743459045243,-500.0,0.00049315,120]
[356941695,1743459045253,-500.0,0.00049315,120]
[356941696,1743459045262,-500.0,0.00049315,120]
[356941697,1743459045272,-169.2769383,0.00049365,10]
[356941698,1743459045281,-300.0,0.000494,120]
[356941699,1743459045291,-2625.9348743,0.00049537,4]
[356941700,1743459045300,-150.0,0.00049547,120]
[356941701,1743459045310,-3143.133,0.00049594,87]
[356941702,1743459045319,-2625.9348743,0.00049817,4]
[356941703,1743459045329,-2038.0,0.00049827,2]
[356941704,1743459045345,-1282.0,0.00049827,2]
[356941705,1743459045355,-573.0,0.00049827,2]
[356941706,1743459045364,-789.0,0.00049827,2]
[356941707,1743459045373,-1275.0,0.00049827,2]
[356941708,1743459045384,-3018.769,0.00049827,2]
[356941709,1743459045393,-3948.0,0.00049827,2]
[356941710,1743459045403,-151.0,0.00049827,2]
[356941711,1743459045415,-1117.0,0.00049827,2]
[356941712,1743459045425,-208.94222754,0.000499,38]
[356941713,1743459045435,-4100.0,0.000499,18]
[356941714,1743459045444,-152.9773861,0.000499,120]
[356941715,1743459045454,-39389.0231145,0.0004999,4]
[356941716,1743459045463,-943.1714948,0.0005,120]
[356941717,1743459045473,-551.05,0.0005,120]
[356941718,1743459045483,-3014.77582396,0.0005,120]
[356941719,1743459045492,-3955.32467403,0.0005,5]
[356941720,1743459045502,-62861.25731716,0.0005,2]
[356941731,1743459045980,-2685.31124165,0.0005,2]
[356941733,1743459046324,-567.80152106,0.0005,2]
[356941734,1743459047597,-309.86087743,0.00039662,2]
[356941735,1743459909367,-250.0,0.00015,2]
[356941736,1743459911316,-150.0,0.00015,2]
[356941737,1743459920001,4664.10618952,9e-05,2]
[356941738,1743459920057,102.45949156,9e-05,2]
[356941739,1743459936067,4441.81847401,8e-05,2]
[356941740,1743459936101,5081.85121735,8e-05,2]
[356941741,1743459936130,51.37630864,8e-05,2]
[356941742,1743459953508,172.45243632,0.0001489,2]
[356941743,1743459976470,-72.68754224,0.0001489,2]
[356941744,1743459976492,-78.31245776,0.00014973,2]
[356941745,1743460042225,1700.0,0.000146,5]
[356941746,1743460044315,3500.0,0.000147,5]
[356941747,1743460046447,5200.0,0.000148,5]
[356941748,1743460048540,7000.0,0.000149,5]
[356941751,1743460094592,-326.86431269,0.000149,2]
[356941753,1743460094624,-116.058266,0.00014959,2]
[356941757,1743460109540,1679.23841667,9.828e-05,2]
[356941758,1743460118991,5399.51854461,0.00015,5]
[356941760,1743460119591,-875.26215454,0.000149,2]
[356941762,1743460119640,-222.40346282,0.000149,2]
[356941764,1743460119681,-397.92362107,0.000149,2]
[356941769,1743460142576,-152.35,0.00014899,2]
[356941770,1743460144738,-147.65,0.00014899,2]
[356941772,1743460144768,-1236.35696634,0.000149,2]
[356941774,1743460144800,-7919.27974289,0.000149,2]
[356941775,1743460144838,-3731.49788089,0.000149,2]
[356941778,1743460145679,-195.6807,0.000149,2]
[356941782,1743460195063,-1348.64206102,0.000149,2]
[356941791,1743460232126,-299.99,0.000149,2]
[356941792,1743460232138,-478.31588386,0.000149,2]
[356941793,1743460232223,-184.85874335,0.000149,2]
[356941794,1743460232233,-234.52153551,0.000149,2]
[356941795,1743460232245,-329.70833552,0.000149,2]
[356941796,1743460232254,-150.0,0.00014929,2]
[356941797,1743460232263,-217.9095418,0.00014932,2]
[356941798,1743460232273,-43.941734,0.00014959,2]
[356941799,1743460232283,-421.68754224,0.00014973,2]
[356941800,1743460232292,-195.6807,0.00014999,2]
[356941801,1743460232302,-150.0,0.00014999,2]
[356941802,1743460232312,-839.40204844,0.00015,2]
[356941803,1743460232379,-19391.5954645,0.00015,2]
[356941804,1743460232392,-330.84378043,0.00015,2]